[Event "Seniors-LEM-50 Sachsen-Anhalt 2024"]
[Site "Magdeburg"]
[Date "2024.07.01"]
[Round "1.1"]
[White "Puschendorf, Steffen"]
[Black "Wulff, Jens-Peter"]
[Result "1-0"]
[ECO "A42"]
[WhiteElo "2067"]
[BlackElo "1827"]
[Annotator "TA"]
[PlyCount "79"]
[EventDate "2024.06.25"]
[EventType "swiss"]
[EventCountry "GER"]
[SourceTitle "playchess.com"]
[Source "ChessBase"]
[SourceQuality "1"]
[TimeControl "40/5400+30:1800+30"]

{[%evp 9,79,44,81,79,109,95,116,122,122,121,132,127,122,77,85,50,78,23,41,31,28,25,35,20,14,12,17,17,41,7,162,135,154,100,117,118,137,135,125,65,170,51,41,-243,-12,-16,278,259,266,242,275,275,401,387,420,416,415,362,615,592,845,656,665,648,2203,2159,2657,2570,2413,2319,1550,1521]} 1. d4 {[%emt 0:00:04]} g6 {[%emt 0:00:30]} 2. c4 {[%emt 0:00:06]} Bg7 {[%emt 0:00:07]} 3. Nc3 {[%emt 0:00:09]} c6 {[%emt 0:00:08]} 4. e4 {[%emt 0:00:49]} d6 {[%emt 0:00:32]} 5. Be3 {[%emt 0:04:01]} Nh6 {[%emt 0:00:55]} 6. Be2 {[%emt 0:02:28]} f6 {[%emt 0:00:47]} 7. h4 {[%emt 0:02:47][%cal Bh2h4,Bh4h5][%mdl 32]} Nf7 {[%emt 0:01:06]} 8. h5 {[%emt 0:02:06] White is better.} g5 {[%emt 0:01:48]} 9. Qc2 {[%emt 0:11:29]} h6 {[%emt 0:04:02]} 10. O-O-O {[%emt 0:02:30]} Bd7 {[%emt 0:02:29]} 11. Nf3 {[%emt 0:01:59]} Na6 {[%emt 0:01:33]} 12. e5 {[%emt 0:05:28]} f5 {[%emt 0:01:20]} 13. exd6 {[%emt 0:06:52] White is more active.} (13. c5 $16) 13... exd6 $11 {[%emt 0:00:56]} 14. a3 {[%emt 0:02:16]} Nc7 {[%emt 0:02:39]} 15. Bd3 {[%emt 0:07:22]} Qf6 {[%emt 0:01:22]} 16. c5 {[%emt 0:05:31][%cal Od4d5] d5! would now be deadly.} d5 {[%emt 0:04:43] [#]} 17. Ne5 $1 {[%emt 0:03:52]} Nxe5 {[%emt 0:02:53]} 18. dxe5 {[%emt 0:00:05]} Qe6 {[%emt 0:02:01][%cal Oe8c8]} 19. f4 {[%emt 0:06:02]} g4 $2 {[%emt 0:01:58]} (19... gxf4 $11 20. Bxf4 O-O-O) 20. Ne2 {[%emt 0:01:01]} O-O {[%emt 0:04:36]} 21. Ng3 {[%emt 0:01:23]} (21. Nd4 $142 Qf7 22. g3) 21... Kh8 {[%emt 0:04:28]} 22. Rhe1 {[%emt 0:02:27]} a5 {[%emt 0:04:33]} 23. Bd2 {[%emt 0:03:11]} Qf7 {[%emt 0:05:18]} 24. a4 {[%emt 0:04:07]} (24. Kb1 $16) 24... Be6 {[%emt 0:00:29] [#]} (24... d4 $1 $14) 25. Qc3 {[%emt 0:04:37]} ({Only move:} 25. Ne2 $1 $18) 25... d4 $14 {[%emt 0:04:49][%cal Bd5d4,Bd4e3][%mdl 32]} 26. Qa3 {[%emt 0:03:58][%mdl 8192]} (26. Qxd4 $14 {is the one way to stay ahead.} Rfd8 27. Qc3) 26... Nd5 $2 {[%emt 0:06:45]} ({Better is} 26... Rfd8 $19 {[%cal Ob7b6] White must now prevent ...b6!} 27. b3 Bf8 (27... Bxb3 28. Nxf5 Bxd1 29. Kxd1 $16)) 27. Ne2 $11 {[%emt 0:02:35]} Ne3 $2 {[%emt 0:02:47][%mdl 8192] [#]} (27... Rfd8 $1 $11 {and Black is okay.}) 28. Bxe3 $1 $18 {[%emt 0:01:32]} (28. Nxd4 Nxd1 29. Rxd1 Bc8 $16) 28... dxe3 {[%emt 0:00:03]} 29. Nd4 {[%emt 0:00:56]} Rad8 {[%emt 0:00:30]} 30. Bc2 {[%emt 0:00:48]} Rxd4 {[%emt 0:06:07]} (30... Bc4 $142 31. Rxe3 (31. Qxe3 Qxh5 32. Qc3 Bd5 $18) 31... Qxh5) 31. Rxd4 {[%emt 0:00:36]} Bd5 {[%emt 0:01:04]} 32. g3 {[%emt 0:03:43]} ({Much less strong is} 32. Rxe3 Qxh5 33. g3 Qe8 $18) 32... Qxh5 {[%emt 0:00:46]} 33. Qxe3 {[%emt 0:00:31] Threatens to win with Bb3.} Rd8 $2 {[%emt 0:03:38]} (33... Qf7 34. Rd3 Qe6) 34. Bb3 {[%emt 0:01:16] White is clearly winning.} Bf8 {[%emt 0:02:12]} 35. Rd2 {[%emt 0:00:25]} Qf7 {[%emt 0:01:22]} 36. Bxd5 {[%emt 0:01:34]} Rxd5 {[%emt 0:00:32]} 37. e6 {[%emt 0:01:33]} Qe7 {[%emt 0:05:01]} 38. Rxd5 {[%emt 0:00:30]} cxd5 {[%emt 0:00:01]} 39. Qe5+ {[%emt 0:01:14]} Kg8 {[%emt 0:04:09]} 40. Qxd5 {[%emt 0:00:46] Weighted Error Value: White=0.35/Black=0.62.  Loses game:     	White=1     	Black=1      Missed win:     	---       	Black=1      Mistake:       	White=4     	Black=4      Inaccurate:     	White=3     	Black=3      OK:         	White=10    	Black=8      Strong:       	White=1     	---} 1-0

[Event "Seniors-LEM-50 Sachsen-Anhalt 2024"]
[Site "Magdeburg"]
[Date "2024.07.01"]
[Round "1.2"]
[White "Giesenberg, Angela"]
[Black "Hansch, Torsten"]
[Result "0-1"]
[ECO "C44"]
[WhiteElo "1827"]
[BlackElo "2047"]
[Annotator "TA"]
[PlyCount "72"]
[EventDate "2024.06.25"]
[EventType "swiss"]
[EventCountry "GER"]
[SourceTitle "playchess.com"]
[Source "ChessBase"]
[SourceQuality "1"]
[TimeControl "40/5400+30:1800+30"]

{[%evp 10,72,-40,-46,0,-52,-27,-31,-13,-6,-17,-35,10,0,41,27,31,-5,21,24,15,14,42,28,46,41,28,22,12,0,0,0,64,0,0,-5,35,33,67,-7,-28,-158,-50,-90,0,-55,0,-205,-205,-195,-163,-504,-473,-511,-494,-505,-491,-667,-665,-769,-755,-728,-560,-797,-504]} 1. Nf3 {[%emt 0:00:04]} d5 {[%emt 0:00:26]} 2. d3 {[%emt 0:00:32]} Nf6 {[%emt 0:00:20]} 3. g3 {[%emt 0:00:11]} Nc6 {[%emt 0:00:24]} 4. Bg2 {[%emt 0:00:09]} e5 {[%emt 0:00:18]} 5. Nbd2 {[%emt 0:00:20]} Bc5 {[%emt 0:00:31]} 6. e4 {[%emt 0:01:57]} Bg4 {[%emt 0:04:52]} (6... dxe4 $15 7. dxe4 O-O) 7. c3 {[%emt 0:02:40]} ({White should try} 7. exd5 $11 Qxd5 8. h3) 7... d4 {[%emt 0:07:10]} 8. Qc2 {[%emt 0:06:07]} O-O {[%emt 0:06:39] Black is slightly better.} 9. h3 {[%emt 0:01:33]} Be6 {[%emt 0:04:09]} 10. O-O {[%emt 0:01:39]} dxc3 {[%emt 0:02:03]} 11. bxc3 {[%emt 0:01:08]} h6 {[%emt 0:00:25]} 12. Nb3 {[%emt 0:06:45]} Bb6 {[%emt 0:00:25]} 13. Be3 {[%emt 0:03:33]} Qd7 {[%emt 0:03:31]} 14. Kh2 {[%emt 0:04:55]} Rfd8 {[%emt 0:00:33]} 15. Rad1 {[%emt 0:04:45]} Qe7 {[%emt 0:04:06]} 16. d4 {[%emt 0:05:12] d5 would now be deadly.} exd4 {[%emt 0:02:04]} 17. Nfxd4 {[%emt 0:02:49]} Nxd4 {[%emt 0:03:25]} 18. Nxd4 {[%emt 0:06:13]} (18. cxd4 {simplifies} Bxb3 19. axb3 c6 20. f3) 18... Bc4 {[%emt 0:02:07]} 19. Nf5 {[%emt 0:04:51]} Qe6 {[%emt 0:03:41]} 20. Rfe1 {[%emt 0:05:49]} Bxa2 {[%emt 0:09:39]} (20... Rxd1 $11 21. Qxd1 Bxa2) 21. Nd4 {[%emt 0:01:10]} (21. Rxd8+ $1 $14 Rxd8 22. Nd4 Bxd4 23. cxd4) 21... Bxd4 $1 $11 {[%emt 0:04:11]} 22. Rxd4 {[%emt 0:00:48][%cal Oe4e5]} Bc4 {[%emt 0:05:15] [#]} 23. e5 $1 {[%emt 0:04:28][%mdl 1024] White has compensation.} Nd5 {[%emt 0:04:37]} 24. Bc1 {[%emt 0:09:25]} (24. Rxc4 Nxe3 (24... Qxe5 $2 25. Qb1 $18) 25. Rxe3 Qxc4 $11) ({White must play} 24. Bxh6 $14 Nb6 25. Rxd8+ Rxd8 26. Bg5) 24... b5 {[%emt 0:03:13]} 25. Qd2 {[%emt 0:06:44] [#]} (25. Be4 $1 $11) 25... c6 {[%emt 0:02:53]} (25... c5 $1 $17 {[%cal Rc5d4]} 26. Rxc4 bxc4) 26. h4 {[%emt 0:00:05]} Kh8 {[%emt 0:11:37]} (26... c5 $17 27. Bh3 Qg6) 27. Bh3 {[%emt 0:01:58]} ({Better is} 27. Ba3 $1 $11) 27... Qg6 {[%emt 0:00:03]} (27... Qe7 $15 28. Bf5 Bb3) 28. Ree4 $2 {[%emt 0:09:06]} (28. Ba3 $11) 28... c5 $19 {[%emt 0:04:05]} 29. Rg4 {[%emt 0:01:07]} Qh7 $36 {[%emt 0:00:04][%mdl 2048] Black is in control.} 30. Rxd5 {[%emt 0:05:54]} (30. Rxc4 {is tougher.} bxc4 31. Qa2) 30... Bxd5 {[%emt 0:01:34] Black is clearly winning.} 31. Qe3 {[%emt 0:01:12]} Be6 {[%emt 0:02:38]} 32. Rf4 {[%emt 0:00:09]} Rac8 {[%emt 0:02:08] Hoping for ...Qc2.} 33. Bg2 {[%emt 0:01:00]} Qd3 {[%emt 0:00:14]} 34. Qe1 {[%emt 0:01:23]} Qd1 {[%emt 0:00:52]} 35. Qe3 {[%emt 0:00:53]} Rc7 {[%emt 0:02:40] White must now prevent ...Rd3.} 36. Ba3 {[%emt 0:01:15]} Qd3 {[%emt 0:01:12] Weighted Error Value: White=0.64/Black=0.30.  Loses game:     	White=1     	---        Mistake:       	White=6     	Black=4      Inaccurate:     	White=3     	Black=5      OK:         	White=8     	Black=6      Best:        	---       	Black=1      Strong:       	---       	Black=1} 0-1

[Event "Seniors-LEM-50 Sachsen-Anhalt 2024"]
[Site "Magdeburg"]
[Date "2024.07.01"]
[Round "1.3"]
[White "Hoffmann, Uwe"]
[Black "Meffert, Claudia"]
[Result "1-0"]
[ECO "E07"]
[WhiteElo "2013"]
[BlackElo "1811"]
[Annotator "TA"]
[PlyCount "39"]
[EventDate "2024.06.25"]
[EventType "swiss"]
[EventCountry "GER"]
[SourceTitle "playchess.com"]
[Source "ChessBase"]
[SourceQuality "1"]
[TimeControl "40/5400+30:1800+30"]

{[%evp 13,39,8,35,27,46,16,33,40,52,32,126,106,210,95,143,125,137,141,136,150,434,431,414,428,1740,1737,1714,628]} 1. d4 {[%emt 0:00:04]} d5 {[%emt 0:00:06]} 2. c4 {[%emt 0:00:20]} e6 {[%emt 0:00:17]} 3. g3 {[%emt 0:00:26]} Nf6 {[%emt 0:00:37]} 4. Nf3 {[%emt 0:00:24]} Be7 {[%emt 0:00:59]} 5. Bg2 {[%emt 0:00:27]} O-O {[%emt 0:01:08]} 6. O-O {[%emt 0:00:24]} Nbd7 {[%emt 0:06:55]} 7. b3 {[%emt 0:00:56]} Ne4 {[%emt 0:04:30]} 8. Qc2 {[%emt 0:04:23]} f5 {[%emt 0:05:42]} 9. Ne5 {[%emt 0:07:02]} Bf6 {[%emt 0:14:13]} 10. Bb2 {[%emt 0:05:06] White is slightly better.} c6 {[%emt 0:12:50]} 11. Nd2 {[%emt 0:02:52][%cal Rd2e4]} h5 {[%emt 0:11:43]} (11... Nxe5 $14 12. dxe5 Be7) 12. Nxe4 {[%emt 0:04:35]} fxe4 {[%emt 0:00:59] [#]} (12... dxe4 $16 13. Ng6 Re8) 13. f3 {[%emt 0:00:47]} (13. Ng6 $1 $18 {is more deadly.}) 13... exf3 {[%emt 0:04:05]} ({Better is} 13... Nxe5 14. dxe5 Be7) 14. Bxf3 {[%emt 0:02:18]} ({Much less strong is} 14. Rxf3 Nxe5 15. dxe5 Be7 $16) 14... Bxe5 {[%emt 0:01:47]} 15. dxe5 {[%emt 0:00:40] And now cxd5 would win.} Qg5 {[%emt 0:00:37]} 16. Bg2 {[%emt 0:13:04]} Nxe5 $2 {[%emt 0:01:07] [#] This move loses the game for Black.} (16... a5 $16 {is a better defense.} 17. cxd5 cxd5) 17. Rxf8+ $18 {[%emt 0:05:32]} Kxf8 {[%emt 0:00:13]} 18. Qh7 {[%emt 0:06:06]} ({Weaker is} 18. Qc3 Ng4 $14) 18... Nf7 {[%emt 0:12:03]} (18... Ke7 $142 19. Rf1 a5) 19. Ba3+ {[%emt 0:00:21] This pair of bishops is nice.} Ke8 {[%emt 0:00:20]} 20. Qg8+ {[%emt 0:00:13] Weighted Error Value: White=0.21 (precise) /Black=0.78.  Loses game:     	---       	Black=1      Mistake:       	White=1     	Black=4      Inaccurate:     	White=1     	---        OK:         	White=3     	Black=1      Best:        	White=2     	Black=1} 1-0

[Event "Seniors-LEM-50 Sachsen-Anhalt 2024"]
[Site "Magdeburg"]
[Date "2024.07.01"]
[Round "1.4"]
[White "Buciu, Aurel-John"]
[Black "Ackermann, Robert"]
[Result "1/2-1/2"]
[ECO "D02"]
[WhiteElo "1807"]
[BlackElo "2041"]
[Annotator "NA RC"]
[PlyCount "32"]
[EventDate "2024.06.25"]
[EventType "swiss"]
[EventCountry "GER"]
[SourceTitle "playchess.com"]
[Source "ChessBase"]
[SourceQuality "1"]
[TimeControl "40/5400+30:1800+30"]

1. d4 {[%emt 0:02:40]} d5 {[%emt 0:00:22]} 2. Bf4 {[%emt 0:00:34]} Nf6 {[%emt 0:00:25]} 3. Nf3 {[%emt 0:00:30]} c6 {[%emt 0:00:35]} 4. e3 {[%emt 0:02:15]} Bf5 {[%emt 0:00:30]} 5. Bd3 {[%emt 0:00:39]} Bxd3 {[%emt 0:01:16]} 6. Qxd3 {[%emt 0:00:47]} e6 {[%emt 0:00:26]} 7. Nbd2 {[%emt 0:00:16]} Be7 {[%emt 0:00:35]} 8. h3 {[%emt 0:00:29]} Nbd7 {[%emt 0:00:47]} 9. O-O {[%emt 0:00:46]} O-O {[%emt 0:01:11]} 10. Ne5 {[%emt 0:01:47]} c5 {[%emt 0:01:28]} 11. c4 {[%emt 0:03:44]} dxc4 {[%emt 0:01:12]} 12. Ndxc4 {[%emt 0:03:57]} Nxe5 {[%emt 0:01:13]} 13. Bxe5 {[%emt 0:04:46]} cxd4 {[%emt 0:02:51]} 14. Qxd4 {[%emt 0:04:28]} Qxd4 {[%emt 0:00:46]} 15. Bxd4 {[%emt 0:01:10]} Rac8 {[%emt 0:01:58]} 16. Rac1 {[%emt 0:02:04]} Nd5 {[%emt 0:19:40]} 1/2-1/2

[Event "Seniors-LEM-50 Sachsen-Anhalt 2024"]
[Site "Magdeburg"]
[Date "2024.07.01"]
[Round "1.6"]
[White "Klanten, Christoph"]
[Black "Schroeder, Frank"]
[Result "1-0"]
[ECO "C02"]
[WhiteElo "1968"]
[BlackElo "1942"]
[Annotator "NA RC"]
[PlyCount "31"]
[EventDate "2024.06.25"]
[EventType "swiss"]
[EventCountry "GER"]
[SourceTitle "playchess.com"]
[Source "ChessBase"]
[SourceQuality "1"]
[TimeControl "40/5400+30:1800+30"]

1. e4 {[%emt 0:00:04]} c5 {[%emt 0:00:06]} 2. c3 {[%emt 0:00:06]} Nc6 {[%emt 0:00:12]} 3. d4 {[%emt 0:00:07]} cxd4 {[%emt 0:00:36]} 4. cxd4 {[%emt 0:00:12]} d5 {[%emt 0:02:45]} 5. e5 {[%emt 0:00:13]} e6 {[%emt 0:01:09]} 6. Nf3 {[%emt 0:00:45]} Bb4+ {[%emt 0:01:10]} 7. Nc3 {[%emt 0:02:42]} Nge7 {[%emt 0:01:58]} 8. a3 {[%emt 0:04:12]} Bxc3+ {[%emt 0:01:17]} 9. bxc3 {[%emt 0:00:10]} b6 {[%emt 0:04:43]} 10. Bd3 {[%emt 0:01:01]} Bb7 {[%emt 0:01:04]} 11. O-O {[%emt 0:02:43]} O-O {[%emt 0:00:46]} 12. Bxh7+ {[%emt 0:02:45]} Kxh7 {[%emt 0:00:07]} 13. Ng5+ {[%emt 0:00:07]} Kg8 {[%emt 0:08:04]} 14. Qh5 {[%emt 0:01:16]} Re8 {[%emt 0:00:11]} 15. Qxf7+ {[%emt 0:00:40]} Kh8 {[%emt 0:00:06]} 16. Nxe6 {[%emt 0:01:07]} 1-0

[Event "Seniors-LEM-50 Sachsen-Anhalt 2024"]
[Site "Magdeburg"]
[Date "2024.07.01"]
[Round "1.7"]
[White "Schomann, Michael"]
[Black "Frankenberger, Ralf"]
[Result "0-1"]
[ECO "E91"]
[WhiteElo "1777"]
[BlackElo "1939"]
[Annotator "TA"]
[PlyCount "106"]
[EventDate "2024.06.25"]
[EventType "swiss"]
[EventCountry "GER"]
[SourceTitle "playchess.com"]
[Source "ChessBase"]
[SourceQuality "1"]
[TimeControl "40/5400+30:1800+30"]

{[%evp 19,106,93,72,54,42,17,30,7,0,0,2,-328,-324,-323,-327,-387,-375,-364,-292,-349,-327,-373,-382,-375,-372,-458,-452,-517,-519,-500,-436,-535,-456,-580,-595,-764,-756,-761,-749,-746,-744,-763,-750,-775,-591,-579,-578,-569,-395,-408,-387,-448,-436,-499,-457,-479,-378,-868,-401,-397,-383,-385,-375,-394,-390,-476,-478,-460,0,-389,-390,-397,-387,-392,-392,-29971,-29972,-29971,-29973,-29978,-29979,-29979,-29980,-29980,-29981,-29980,-29981,-29985,-29986]} 1. d4 {[%emt 0:00:05]} Nf6 {[%emt 0:00:12]} 2. c4 {[%emt 0:00:05]} d6 {[%emt 0:00:10]} 3. Nc3 {[%emt 0:00:17]} g6 {[%emt 0:00:04]} 4. e4 {[%emt 0:00:13]} Bg7 {[%emt 0:00:10]} 5. Nf3 {[%emt 0:00:15]} O-O {[%emt 0:00:41]} 6. h3 {[%emt 0:01:06]} c5 {[%emt 0:06:53]} 7. d5 {[%emt 0:00:37]} e6 {[%emt 0:08:09]} 8. Be2 {[%emt 0:02:57]} exd5 {[%emt 0:03:09]} 9. exd5 {[%emt 0:03:43]} a6 {[%emt 0:02:05]} 10. O-O {[%emt 0:00:14]} Re8 {[%emt 0:05:14]} 11. Bd3 {[%emt 0:01:55]} Nbd7 {[%emt 0:08:47][%cal Ob7b5]} 12. Bf4 {[%emt 0:05:30]} Nh5 {[%emt 0:09:47]} 13. Bxd6 {[%emt 0:10:05] Re1 would now be deadly. White has an edge.} (13. Bh2 {simplifies} Ne5 14. Re1 f5 15. Nxe5 Bxe5 16. Bxe5 dxe5 17. Bc2) 13... Qb6 $1 {[%emt 0:00:30][%csl LRb2,LRd6]} 14. Bh2 {[%emt 0:00:08]} Qxb2 {[%emt 0:00:09]} 15. Re1 $2 {[%emt 0:12:48][%mdl 8192]} (15. Ne4 $11 Rxe4 (15... Qxa1 16. Qa4 $16) 16. Rb1 (16. Bxe4 Qxa1 17. Qxa1 Bxa1 $16) 16... Qxa2 17. Bxe4) 15... Rxe1+ $19 {[%emt 0:03:53]} 16. Qxe1 {[%emt 0:00:10]} Qxc3 {[%emt 0:00:05]} 17. Qe8+ {[%emt 0:00:33]} Bf8 {[%emt 0:14:26]} ({Not} 17... Nf8 18. Rd1 Nf6 19. Qd8 $19) 18. Rd1 {[%emt 0:21:17]} Ng7 {[%emt 0:03:24]} 19. Qd8 {[%emt 0:00:33]} Qf6 {[%emt 0:00:24]} 20. Qc7 {[%emt 0:01:18]} Ne8 {[%emt 0:03:52]} 21. Qa5 {[%emt 0:02:18]} Bd6 {[%emt 0:02:51]} 22. Bxd6 {[%emt 0:05:25]} Nxd6 {[%emt 0:01:08]} 23. Re1 {[%emt 0:01:21]} b6 {[%emt 0:01:07]} 24. Qa4 {[%emt 0:02:13]} Nf8 {[%emt 0:05:34]} 25. Ne5 {[%emt 0:05:22]} Bb7 {[%emt 0:02:26] ...Re8 is the strong threat.} 26. Nc6 {[%emt 0:04:13] [#]} b5 $1 {[%emt 0:01:16]} 27. cxb5 {[%emt 0:01:56]} (27. Qb3 Bxc6) 27... axb5 {[%emt 0:00:39]} 28. Qc2 {[%emt 0:01:29]} c4 {[%emt 0:03:11]} 29. Bf1 {[%emt 0:04:49]} Bxc6 {[%emt 0:01:36]} 30. dxc6 {[%emt 0:00:11]} Rc8 {[%emt 0:01:21]} 31. a4 {[%emt 0:00:46]} Rxc6 {[%emt 0:01:20] aiming for ...b4.} 32. axb5 {[%emt 0:00:49]} Nxb5 {[%emt 0:00:18] Threatens to win with ...Nd4.} 33. Qa4 {[%emt 0:05:47]} Nc7 {[%emt 0:04:26]} 34. Bxc4 {[%emt 0:02:19]} Rd6 {[%emt 0:01:14]} 35. Bb3 {[%emt 0:00:32]} Nce6 {[%emt 0:01:04]} 36. Qa8 {[%emt 0:00:23]} Kg7 {[%emt 0:01:01]} 37. Qa7 {[%emt 0:00:29]} Qc3 {[%emt 0:01:33]} 38. Qe3 {[%emt 0:00:45]} (38. Qa1 Qxa1 39. Rxa1) 38... Qxe3 {[%emt 0:00:18]} (38... Rd3 $142 39. Qe4 Qxb3) 39. Rxe3 {[%emt 0:00:21]} Rc6 {[%emt 0:00:35]} 40. Kh2 {[%emt 0:01:11]} Nd7 {[%emt 0:01:46]} 41. Ba4 {[%emt 0:33:59]} Rd6 {[%emt 0:30:17]} 42. Rc3 {[%emt 0:00:00]} Ndc5 {[%emt 0:00:00]} 43. Bc2 {[%emt 0:00:00]} Nd7 $2 {[%emt 0:00:00]} (43... Rd2 $19 44. Kg1 Nd4) 44. Bb3 $2 {[%emt 0:00:00][%mdl 8192]} (44. Ba4 $11 Ndc5 45. Bb3) 44... Ne5 {[%emt 0:00:00]} 45. Re3 {[%emt 0:00:00]} Rd3 {[%emt 0:00:00]} 46. Rxd3 {[%emt 0:00:00]} Nxd3 {[%emt 0:00:00]} 47. Bxe6 $2 {[%emt 0:00:00]} (47. Kg1 $19) 47... fxe6 {[%emt 0:00:00] KN-K3P. Black mates.} 48. Kg3 {[%emt 0:00:00]} Kf6 {[%emt 0:00:00]} 49. h4 {[%emt 0:00:00]} h5 {[%emt 0:00:00]} 50. Kf3 {[%emt 0:00:00]} Ne1+ {[%emt 0:00:00]} 51. Kg3 {[%emt 0:00:00]} Kf5 {[%emt 0:00:00]} 52. Kh2 {[%emt 0:00:00]} Kg4 {[%emt 0:00:00]} 53. f3+ {[%emt 0:00:00] [#]} Nxf3+ $1 {[%emt 0:09:55] Black took control after the opening.   Weighted Error Value: White=0.62/Black=0.28 (precise) .  Loses game:     	White=2     	---        Missed win:     	---       	Black=1      Mistake:       	White=2     	Black=1      Inaccurate:     	---       	Black=1      OK:         	White=6     	Black=10     Best:        	White=1     	Black=1      Strong:       	---       	Black=1} 0-1

[Event "Seniors-LEM-50 Sachsen-Anhalt 2024"]
[Site "Magdeburg"]
[Date "2024.07.01"]
[Round "1.8"]
[White "Weitz, Andreas"]
[Black "Bachmann, Sylvia"]
[Result "1-0"]
[ECO "E87"]
[WhiteElo "1936"]
[BlackElo "1768"]
[Annotator "NA RC"]
[PlyCount "49"]
[EventDate "2024.06.25"]
[EventType "swiss"]
[EventCountry "GER"]
[SourceTitle "playchess.com"]
[Source "ChessBase"]
[SourceQuality "1"]
[TimeControl "40/5400+30:1800+30"]

1. d4 {[%emt 0:00:04]} Nf6 {[%emt 0:00:20]} 2. c4 {[%emt 0:00:21]} g6 {[%emt 0:00:18]} 3. Nc3 {[%emt 0:00:15]} Bg7 {[%emt 0:00:11]} 4. e4 {[%emt 0:00:04]} d6 {[%emt 0:00:12]} 5. f3 {[%emt 0:00:38]} O-O {[%emt 0:00:09]} 6. Be3 {[%emt 0:00:04]} e5 {[%emt 0:00:44]} 7. d5 {[%emt 0:00:23]} Ne8 {[%emt 0:01:18]} 8. Qd2 {[%emt 0:01:43]} Bd7 {[%emt 0:01:08]} 9. Bd3 {[%emt 0:01:34]} Na6 {[%emt 0:00:50]} 10. Nge2 {[%emt 0:01:48]} Nc5 {[%emt 0:01:10]} 11. Bc2 {[%emt 0:00:34]} a5 {[%emt 0:00:10]} 12. b3 {[%emt 0:01:03]} Qe7 {[%emt 0:00:25]} 13. O-O {[%emt 0:04:30]} f5 {[%emt 0:05:55]} 14. exf5 {[%emt 0:01:35]} gxf5 {[%emt 0:01:04]} 15. f4 {[%emt 0:00:45]} Nf6 {[%emt 1:24:06]} 16. fxe5 {[%emt 1:23:09]} dxe5 {[%emt 0:00:00]} 17. Bxf5 {[%emt 0:00:00]} Bxf5 {[%emt 0:00:00]} 18. Rxf5 {[%emt 0:00:00]} Nfe4 {[%emt 0:00:00]} 19. Rxf8+ {[%emt 0:00:00]} Rxf8 {[%emt 0:00:00]} 20. Nxe4 {[%emt 0:00:00]} Nxe4 {[%emt 0:00:00]} 21. Qc2 {[%emt 0:00:00]} Nc5 {[%emt 0:00:00]} 22. Re1 {[%emt 0:00:00]} e4 {[%emt 0:00:00]} 23. Nf4 {[%emt 0:00:00]} Rxf4 {[%emt 0:00:00]} 24. Bxf4 {[%emt 0:00:00]} Nd3 {[%emt 0:00:00]} 25. Qxd3 {[%emt 0:00:00]} 1-0

[Event "Seniors-LEM-50 Sachsen-Anhalt 2024"]
[Site "Magdeburg"]
[Date "2024.07.01"]
[Round "1.9"]
[White "Scheunemann, Uwe"]
[Black "Kottke, Steffen"]
[Result "1/2-1/2"]
[ECO "A25"]
[WhiteElo "1764"]
[BlackElo "1933"]
[Annotator "TA"]
[PlyCount "53"]
[EventDate "2024.06.25"]
[EventType "swiss"]
[EventCountry "GER"]
[SourceTitle "playchess.com"]
[Source "ChessBase"]
[SourceQuality "1"]
[TimeControl "40/5400+30:1800+30"]

{[%evp 12,53,20,10,66,21,53,47,56,42,44,18,79,47,64,12,25,16,24,16,26,0,0,0,18,21,40,30,76,49,96,93,93,86,97,55,69,33,44,35,134,80,88,25]} 1. c4 {[%emt 0:00:09]} e5 {[%emt 0:00:14]} 2. Nc3 {[%emt 0:01:51]} Nf6 {[%emt 0:00:14]} 3. g3 {[%emt 1:30:00]} Nc6 {[%emt 1:31:32]} 4. Bg2 {[%emt 0:00:00]} Bc5 {[%emt 0:00:00]} 5. e3 {[%emt 0:00:00]} O-O {[%emt 0:00:00]} 6. Nge2 {[%emt 0:00:00]} Re8 {[%emt 0:00:00]} 7. O-O {[%emt 0:00:00]} Bf8 {[%emt 0:00:00]} ({Black should play} 7... Bb6 $11) 8. a3 {[%emt 0:00:00]} a5 {[%emt 0:00:00]} 9. d4 {[%emt 0:00:00]} exd4 {[%emt 0:00:00] White is slightly better.} 10. exd4 {[%emt 0:00:00]} d6 {[%emt 0:00:00][%cal Oa5a4]} 11. h3 {[%emt 0:04:00]} Bf5 {[%emt 0:04:00]} (11... a4 $11 {remains equal.}) 12. Be3 {[%emt 0:00:00]} Ne4 {[%emt 0:00:00]} 13. Nxe4 {[%emt 0:01:00]} (13. b3 $14) 13... Bxe4 $11 {[%emt 0:00:00]} 14. Bxe4 {[%emt 0:00:00]} Rxe4 {[%emt 0:00:00]} 15. Nc3 {[%emt 0:00:00]} Re8 {[%emt 0:00:00]} 16. Qd2 {[%emt 0:00:00]} Qd7 {[%emt 0:00:00]} 17. Kg2 {[%emt 0:00:00]} Ne7 {[%emt 0:00:00]} 18. d5 {[%emt 0:00:00] Against Qc6} Ng6 {[%emt 0:00:00]} 19. Rae1 {[%emt 0:00:00]} Rad8 {[%emt 0:00:00]} (19... Be7 $11) 20. b3 {[%emt 0:00:00]} b6 {[%emt 0:00:00]} (20... Be7 $14) 21. Re2 {[%emt 0:00:00]} Ne7 {[%emt 0:00:00]} 22. Rfe1 {[%emt 0:00:00]} h6 {[%emt 0:00:00]} 23. a4 {[%emt 0:00:00]} Nf5 {[%emt 0:00:00]} 24. Bd4 {[%emt 0:00:00]} Nxd4 {[%emt 0:00:00]} 25. Qxd4 {[%emt 0:00:00]} Be7 {[%emt 0:00:00] Black is weak on the light squares} ({Black should try} 25... Rxe2 $14 26. Rxe2 Be7) 26. Qd3 {[%emt 0:00:00] White is much more active.} ({Better is} 26. Nb5) 26... Bf8 $16 {[%emt 0:00:00]} 27. Rxe8 {[%emt 0:00:00] Weighted Error Value: White=0.23 (precise) /Black=0.27 (precise) .  Mistake:       	White=3     	Black=4      Inaccurate:     	White=7     	Black=1      OK:         	White=4     	Black=7      Best:        	---       	Black=1} (27. Qf3 $16) 1/2-1/2